bitfinex/quotes_SOLUSD_20250531
["timestamp","ask_amount","ask_price","bid_price","bid_amount"]
[1748657886973,0.3326896,155.05,155.02,21.951838]
[1748657887376,0.3326896,155.05,155.03,40.60148686]
[1748657888270,0.3326896,155.05,155.04,21.951838]
[1748657888613,0.3326896,155.05,155.04,40.88581]
[1748657888812,0.3326896,155.05,155.04,47.3357584]
[1748657894094,0.3326896,155.05,155.03,26.0]
[1748657894407,0.3326896,155.05,155.03,32.45034405]
[1748657894614,0.3326896,155.05,155.03,54.40218205]
[1748657894807,0.3326896,155.05,155.03,26.0]
[1748657895321,0.3326896,155.05,155.03,32.45035345]
[1748657895903,0.3326896,155.05,155.04,40.88581]
[1748657896420,0.3326896,155.05,155.04,62.837648]
[1748657896717,0.3326896,155.05,155.04,125.808648]
[1748657897417,12.21308635,155.14,155.08,18.933972]
[1748657897620,12.21308635,155.14,155.13,40.74364843]
[1748657898008,12.21308635,155.14,155.13,47.18985483]
[1748657898623,12.21308635,155.14,155.13,47.3320164]
[1748657900022,12.21308635,155.14,155.13,84.26243361]
[1748657900415,12.21308635,155.14,155.13,77.81622721]
[1748657900831,12.21308635,155.14,155.13,77.67406564]
[1748657901131,12.21308635,155.14,155.13,51.67406564]
[1748657901534,12.21308635,155.14,155.11,58.88225521]
[1748657901911,12.21308635,155.14,155.12,32.88225521]
[1748657902426,18.65890771,155.14,155.1,0.14216157]
[1748657902615,18.65890771,155.14,155.11,32.88225521]
[1748657902806,12.21308635,155.14,155.11,32.88225521]
[1748657903625,18.65908706,155.14,155.11,32.88225521]
[1748657904004,12.21308635,155.14,155.11,32.88225521]
[1748657904227,18.65901805,155.14,155.11,32.88225521]
[1748657904413,18.65901805,155.14,155.1,0.14216157]
[1748657904606,18.65901805,155.14,155.1,33.02441678]
[1748657905418,51.54127326,155.14,155.09,18.64964886]
[1748657905626,51.54127326,155.14,155.08,12.36]
[1748657905801,51.54127326,155.14,155.09,32.88225521]
[1748657906009,6.44662197,155.12,155.09,32.88225521]
[1748657906216,6.44662197,155.12,155.08,45.24225521]
[1748657907134,12.21308635,155.14,155.08,45.24225521]
[1748657907135,12.21308635,155.14,155.11,51.53190407]
[1748657907332,12.21308635,155.14,155.13,51.67406564]
[1748657907508,12.21308635,155.14,155.13,18.79181043]
[1748657910214,12.21308635,155.14,155.12,32.88225521]
[1748657910415,12.21308635,155.14,155.11,32.88225521]
[1748657910614,12.21308635,155.14,155.11,18.79181043]
[1748657911046,12.21308635,155.14,155.11,51.67406564]
[1748657911219,18.65896348,155.14,155.1,32.88225521]
[1748657911412,51.54121869,155.14,155.1,18.79181043]
[1748657912020,32.88225521,155.13,155.08,45.24225521]
[1748657912445,18.65896348,155.14,155.08,45.24225521]
[1748657912446,32.88225521,155.11,155.08,12.36]
[1748657912914,32.88225521,155.11,155.06,32.88225521]
[1748657914244,6.44745325,155.1,155.06,32.88225521]
[1748657914631,39.32970846,155.1,155.06,18.79181043]
[1748657915640,32.88225521,155.09,155.04,12.0]
[1748657915820,32.88225521,155.08,155.04,12.0]
[1748657916020,39.33078486,155.08,155.04,12.0]
[1748657916621,32.88225521,155.07,155.04,12.0]
[1748657917424,39.33078486,155.08,155.04,12.0]
[1748657917945,6.44662197,155.12,155.04,44.88225521]
[1748657918126,39.33000202,155.1,155.05,51.67406564]
[1748657919049,6.44774681,155.1,155.05,51.67406564]
[1748657919256,39.33000202,155.1,155.05,51.67406564]
[1748657919444,39.33000202,155.1,155.05,18.79181043]
[1748657919649,32.88225521,155.09,155.05,18.79181043]
[1748657920132,39.33000202,155.1,155.05,51.67406564]
[1748657920337,163.01628162,155.13,155.05,51.67406564]
[1748657920338,6.44662197,155.12,155.05,51.67406564]
[1748657920562,32.88225521,155.1,155.05,51.67406564]
[1748657921047,153.34628248,155.13,155.07,18.79181043]
[1748657921252,179.78225521,155.13,155.09,0.14216157]
[1748657921433,12.21308635,155.14,155.1,32.88225521]
[1748657922642,12.21308635,155.14,155.1,39.32965095]
[1748657922842,12.21308635,155.14,155.12,18.64964886]
[1748657923023,12.21308635,155.14,155.12,51.53190407]
[1748657923863,32.88225521,155.13,155.08,45.16225521]
[1748657924038,32.88225521,155.12,155.08,12.28]
[1748657924353,45.09534156,155.14,155.09,51.67406564]
[1748657924582,12.21308635,155.14,155.1,32.88225521]
[1748657924738,51.54128516,155.14,155.09,32.88225521]
[1748657925064,32.88225521,155.12,155.07,32.88225521]
[1748657925366,32.88225521,155.13,155.08,32.88225521]
[1748657925942,21.9432796,155.13,155.08,21.9432796]
[1748657926570,28.3896276,155.13,155.08,21.9432796]
[1748657927164,28.3896276,155.13,155.07,18.64964886]
[1748657927363,6.446348,155.13,155.08,21.9432796]
[1748657927568,21.9432796,155.13,155.08,21.9432796]
[1748657927865,40.60222632,155.14,155.09,21.9432796]
[1748657928367,21.9432796,155.13,155.08,0.14216157]
[1748657928672,28.38976407,155.13,155.08,22.08544117]
[1748657929055,18.65896433,155.14,155.09,21.9432796]
[1748657929358,40.60224393,155.14,155.09,21.9432796]
[1748657931539,21.9432796,155.13,155.08,22.08544117]
[1748657931979,21.9432796,155.12,155.07,40.59292846]
[1748657933835,28.39008715,155.12,155.07,40.59292846]
[1748657936352,28.39008715,155.12,155.04,12.0]
[1748657936353,21.9432796,155.1,155.04,12.0]
[1748657936563,21.9432796,155.06,155.04,12.0]
[1748657937169,6.44898268,155.07,155.04,12.0]
[1748657937344,21.9432796,155.07,155.04,12.0]
[1748657937538,28.39200468,155.07,155.04,12.0]
[1748657940391,21.9432796,155.05,155.04,12.0]
[1748657941174,21.9432796,155.06,155.04,12.0]
[1748657941535,50.88352508,155.07,155.04,12.0]
[1748657941536,72.82680468,155.07,155.04,12.0]
[1748657941940,66.3780796,155.07,155.04,12.0]
[1748657942570,21.9432796,155.12,155.05,21.9432796]
[1748657942571,6.44781603,155.1,155.05,21.9432796]
[1748657942756,21.9432796,155.1,155.05,21.9432796]
[1748657942955,8.08148102,155.12,155.07,21.9432796]
[1748657943161,21.9432796,155.11,155.07,21.9432796]
[1748657943475,21.9432796,155.1,155.05,21.9432796]
[1748657944140,21.9432796,155.1,155.05,40.73509003]
[1748657944469,21.9432796,155.09,155.04,40.39316384]
[1748657944642,21.9432796,155.05,155.04,12.0]
[1748657945961,32.94921833,155.05,155.04,12.0]
[1748657946854,39.39875073,155.05,155.04,12.0]
[1748657947273,32.94921833,155.05,155.04,12.0]
[1748657947482,32.94921833,155.07,155.04,12.0]
[1748657948048,186.29713211,155.09,155.04,44.94921833]
[1748657948662,153.34791378,155.09,155.04,12.0]
[1748657948852,32.94921833,155.06,155.04,12.0]
[1748657949256,6.44903037,155.07,155.04,12.0]
[1748657949457,32.94921833,155.06,155.04,12.0]
[1748657949674,6.44903037,155.07,155.04,12.0]
[1748657949865,32.94921833,155.05,155.04,12.0]
[1748657950248,6.44903037,155.07,155.04,12.0]
[1748657950681,32.94921833,155.06,155.04,12.0]
[1748657950977,32.94921833,155.05,155.04,12.0]
[1748657951558,1.6317,155.06,155.04,12.0]
[1748657951881,32.94921833,155.05,155.04,12.0]
[1748657953077,39.39875073,155.05,155.04,12.0]
[1748657953385,65.39875073,155.05,154.9,7.6344]
[1748657953688,26.0,155.0,154.9,7.6344]
[1748657953848,42.78,154.99,154.9,7.6344]
[1748657954046,42.78,154.99,154.9,40.58361833]
[1748657954250,32.94921833,154.97,154.91,32.94921833]
[1748657954552,32.94921833,154.98,154.92,32.94921833]
[1748657955450,32.94921833,154.97,154.92,32.94921833]
[1748657956258,39.40124749,154.99,154.94,32.94921833]
[1748657956464,39.40070867,155.01,154.96,32.94921833]
[1748657956776,6.45149034,155.01,154.96,32.94921833]
[1748657957277,42.76,155.03,154.95,0.14216157]
[1748657957481,42.76,155.03,154.95,33.0913799]
[1748657957482,32.94921833,155.0,154.95,33.0913799]
[1748657957778,32.94921833,154.99,154.94,32.94921833]
[1748657958283,32.94921833,154.99,154.94,0.14216157]
[1748657958454,32.94921833,154.99,154.94,33.0913799]
[1748657959071,32.94921833,154.98,154.93,18.64964886]
[1748657959277,39.40244582,154.97,154.92,32.94921833]
[1748657959682,39.40244582,154.97,154.91,38.22]
[1748657959891,32.94921833,154.96,154.91,45.16921833]
[1748657960267,39.40244582,154.97,154.92,32.94921833]
[1748657960594,32.94921833,154.97,154.92,32.94921833]
[1748657960776,32.94921833,154.97,154.92,18.79181043]
[1748657960978,32.94921833,154.97,154.92,51.74102876]
[1748657962494,39.4017133,154.98,154.93,32.94921833]
[1748657963799,6.45249497,154.98,154.93,32.94921833]
[1748657964090,32.94921833,155.0,154.95,32.94921833]
[1748657964392,32.94921833,154.99,154.94,32.94921833]
[1748657966006,32.94921833,154.99,154.94,39.40318838]
[1748657966502,39.40131853,154.99,154.94,51.74102876]
[1748657966668,32.94921833,155.0,154.96,18.79181043]
[1748657966996,39.40076723,155.01,154.96,51.74102876]
[1748657967300,39.40076723,155.01,154.96,33.0913799]
[1748657967500,146.9,155.02,155.0,32.94921833]
[1748657967795,16.1202076,155.09,155.0,32.94921833]
[1748657967796,153.34873746,155.07,155.01,32.94921833]
[1748657968107,146.9,155.07,155.03,21.95942598]
[1748657968274,28.40772442,155.08,155.01,0.28432314]
[1748657968275,21.95942598,155.08,155.01,0.28432314]
[1748657968604,21.95942598,155.08,155.03,21.95942598]
[1748657969605,28.40784298,155.08,155.03,21.95942598]
[1748657970108,32.93498695,155.07,155.03,32.93498695]
[1748657971563,13.8258,155.11,155.03,32.93498695]
[1748657971564,13.8258,155.11,155.06,32.93498695]
[1748657971772,32.93498695,155.1,155.05,32.93498695]
[1748657971996,32.93498695,155.09,155.04,32.93498695]
[1748657972599,32.93498695,155.08,155.03,51.58463581]
[1748657973077,32.93498695,155.08,155.04,32.93498695]
[1748657973601,39.38321764,155.09,155.04,32.93498695]
[1748657976014,32.93498695,155.1,155.05,32.93498695]
[1748657976326,146.9,155.13,155.07,32.93498695]
[1748657976327,39.38195731,155.12,155.07,32.93498695]
[1748657978079,39.38195731,155.12,155.05,25.09884592]
[1748657978080,32.93498695,155.11,155.06,32.93498695]
[1748657978285,32.93498695,155.11,155.06,33.07714852]
[1748657979393,39.38229872,155.11,155.06,33.07714852]
[1748657980227,32.93498695,155.11,155.06,39.52623566]
[1748657980591,39.38204116,155.11,155.06,33.07714852]
[1748657981618,39.38204116,155.11,155.06,32.93498695]
[1748657982312,32.93498695,155.1,155.05,51.58463581]
[1748657983623,39.38261727,155.1,155.05,51.58463581]
[1748657983823,39.38261727,155.1,155.05,18.64964886]
[1748657984009,6.44763032,155.1,155.06,32.93498695]
[1748657985714,39.38206779,155.11,155.06,32.93498695]
[1748657986518,6.44708084,155.11,155.07,32.93498695]
[1748657986724,39.38206779,155.11,155.07,32.93498695]
[1748657987927,39.38206779,155.11,155.06,32.93498695]
[1748657988494,6.44708084,155.11,155.06,32.93498695]
[1748657988695,39.38206779,155.11,155.06,32.93498695]
[1748657990038,21.94959929,155.11,155.06,21.94959929]
[1748657991635,6.44662197,155.12,155.06,21.94959929]
[1748657991808,21.94959929,155.11,155.07,21.94959929]
[1748657992333,12.21308635,155.14,155.1,21.94959929]
[1748657992523,12.21308635,155.14,155.13,21.94959929]
[1748657992724,12.21308635,155.14,155.13,40.74140972]
[1748657994115,12.21308635,155.14,155.13,21.94959929]
[1748657995018,12.21308635,155.14,155.11,21.94959929]
[1748657995413,12.21308635,155.14,155.12,21.94959929]
[1748657995641,18.65889174,155.14,155.12,21.94959929]
[1748657996432,18.65889174,155.14,155.11,21.94959929]
[1748657997418,18.65889174,155.14,155.09,30.80964886]
[1748657997419,21.94959929,155.13,155.09,12.16]
[1748657997618,21.94959929,155.13,155.09,34.10959929]
[1748657998028,56.72296827,155.14,155.09,34.10959929]
[1748657999217,12.21308635,155.14,155.12,21.94959929]
[1748658000042,18.65888149,155.14,155.12,21.94959929]
[1748658000342,18.65888149,155.14,155.09,31.093972]
[1748658000343,18.65888149,155.14,155.11,21.94959929]
[1748658000523,21.94959929,155.13,155.09,12.16]
[1748658000916,34.77335873,155.14,155.09,12.16]
[1748658001329,34.77335873,155.14,155.1,21.94959929]
[1748658001538,18.65888149,155.14,155.1,21.94959929]
[1748658001915,21.94959929,155.12,155.09,12.16]
[1748658002139,21.94959929,155.12,155.08,0.14216157]
[1748658002551,6.44703758,155.11,155.07,40.59924815]
[1748658003027,6.44703758,155.11,155.08,21.94959929]
[1748658003840,28.32756359,155.14,155.06,33.90186157]
[1748658003841,12.21308635,155.14,155.1,21.94959929]
[1748658004048,12.21308635,155.14,155.13,21.94959929]
[1748658005125,12.21308635,155.14,155.12,21.94959929]
[1748658005329,18.65892699,155.14,155.11,21.94959929]
[1748658006217,18.65892699,155.14,155.1,12.1]
[1748658006419,40.60852628,155.14,155.1,12.1]
[1748658006823,21.94959929,155.13,155.1,12.1]
[1748658007044,18.65892699,155.14,155.1,12.1]
[1748658007045,21.94959929,155.12,155.1,12.1]
[1748658007252,18.65892699,155.14,155.1,12.1]
[1748658007253,21.94959929,155.13,155.1,12.1]
[1748658008443,21.94959929,155.13,155.08,40.59924815]
[1748658008645,6.44662197,155.12,155.08,40.59924815]
[1748658009326,34.16268564,155.14,155.09,21.94959929]
[1748658009634,12.21308635,155.14,155.13,21.94959929]
[1748658010034,12.21308635,155.14,155.12,21.94959929]
[1748658010956,12.21308635,155.14,155.11,52.84140972]
[1748658011943,12.21308635,155.14,155.11,12.1]
[1748658014560,18.65889885,155.14,155.11,12.1]
[1748658014737,40.60849814,155.14,155.11,12.1]
[1748658015865,40.60849814,155.14,155.02,26.58209018]
[1748658015866,43.89919858,155.12,155.03,21.94959929]
[1748658016072,43.89919858,155.12,155.02,48.76804815]
[1748658016073,21.94959929,155.07,155.02,48.76804815]
[1748658016368,21.94959929,155.06,155.02,8.1688]
[1748658016779,28.39913169,155.05,155.0,12.1]
[1748658016955,21.94959929,155.04,155.0,12.1]
[1748658017773,28.39913169,155.05,155.0,34.04959929]
[1748658018544,28.39878669,155.06,155.01,21.94959929]
[1748658018753,21.94959929,155.05,155.0,34.04959929]
[1748658019978,21.94959929,155.03,155.0,12.1]
[1748658020181,28.39878669,155.06,155.01,21.94959929]
[1748658021378,21.94959929,155.05,155.0,34.04959929]
[1748658021656,21.94959929,155.04,155.0,12.1]
[1748658022172,21.94959929,155.05,155.0,34.04959929]
[1748658022559,6.4491874,155.06,155.01,21.94959929]
[1748658022877,28.39878669,155.06,155.01,21.94959929]
[1748658023449,21.94959929,155.05,155.0,34.04959929]
[1748658023784,21.94959929,155.05,155.0,40.50115312]
[1748658024279,21.94959929,155.07,155.02,21.94959929]
[1748658024652,21.94959929,155.08,155.03,21.94959929]
[1748658025180,28.39746826,155.09,155.04,21.94959929]
[1748658026683,21.94959929,155.09,155.04,21.94959929]
[1748658026983,28.39753606,155.09,155.04,40.59924815]
[1748658027181,6.44745325,155.1,155.04,40.59924815]
[1748658027352,21.94959929,155.09,155.04,40.59924815]
[1748658027767,21.94959929,155.09,155.05,0.14216157]
[1748658027974,28.39705254,155.1,155.05,22.09176086]
[1748658028457,21.94959929,155.1,155.05,22.09176086]
[1748658028659,175.29674595,155.11,155.06,21.94959929]
[1748658028959,21.94959929,155.1,155.06,21.94959929]
[1748658029673,28.397081,155.1,155.06,21.94959929]
[1748658030735,21.94959929,155.1,155.06,21.94959929]
[1748658030862,21.94959929,155.1,155.05,14.77167285]
[1748658031068,21.94959929,155.1,155.06,21.94959929]
[1748658031467,153.3471276,155.11,155.09,21.94959929]
[1748658031468,146.9,155.11,155.09,21.94959929]
[1748658031682,18.65917709,155.14,155.09,21.94959929]
[1748658031858,40.60877638,155.14,155.09,21.94959929]
[1748658032495,12.21308635,155.14,155.1,21.94959929]
[1748658034086,12.21308635,155.14,155.09,44.933972]
[1748658034256,12.21308635,155.14,155.1,21.94959929]
[1748658035688,12.21308635,155.14,155.09,44.933972]
[1748658035910,18.65890965,155.14,155.11,21.94959929]
[1748658037106,18.65890965,155.14,155.09,21.94959929]
[1748658037107,40.60850894,155.14,155.09,21.94959929]
[1748658037287,40.60850894,155.14,155.06,38.06]
[1748658037288,21.94959929,155.13,155.08,21.94959929]
[1748658037609,34.77338689,155.14,155.1,21.94959929]
[1748658037900,56.72298618,155.14,155.08,0.14216157]
[1748658038093,56.72298618,155.14,155.09,21.94959929]
[1748658039278,18.65890965,155.14,155.11,21.94959929]
[1748658039900,18.65890965,155.14,155.08,0.14216157]
[1748658040200,18.65890965,155.14,155.1,21.94959929]
[1748658041407,56.72298618,155.14,155.09,21.94959929]
[1748658042078,21.94959929,155.12,155.06,12.06]
[1748658042278,34.77338689,155.14,155.06,34.00959929]
[1748658042279,21.94959929,155.1,155.06,34.00959929]
[1748658042685,21.94959929,155.11,155.06,34.00959929]
[1748658043624,12.21308635,155.14,155.09,21.94959929]
[1748658043783,6.4462064,155.13,155.1,21.94959929]
[1748658044107,28.39580569,155.13,155.08,21.94959929]
[1748658044289,21.94959929,155.12,155.07,21.94959929]
[1748658045289,6.44703758,155.11,155.07,21.94959929]
[1748658046204,6.44703758,155.11,155.08,21.94959929]
[1748658047808,6.44703758,155.11,155.07,22.09176086]
[1748658048112,28.39663687,155.11,155.06,34.00959929]
[1748658048418,21.94959929,155.08,155.03,18.79181043]
[1748658048589,21.94959929,155.08,155.03,40.74140972]
[1748658048793,21.94959929,155.08,155.04,0.14216157]
[1748658048988,21.94959929,155.09,155.04,22.09176086]
[1748658049501,28.39780729,155.09,155.04,22.09176086]
[1748658050019,6.448208,155.09,155.04,22.09176086]
[1748658050316,16.11759396,155.11,155.06,21.94959929]
[1748658050317,28.39695702,155.11,155.06,21.94959929]
[1748658052211,6.44735773,155.11,155.07,21.94959929]
[1748658052601,28.39695702,155.11,155.06,21.94959929]
[1748658056993,21.94959929,155.1,155.05,21.94959929]
[1748658058410,6.44786897,155.09,155.05,21.94959929]
[1748658058913,6.44786897,155.09,155.03,6.4503642]
[1748658058914,21.94959929,155.08,155.03,21.94959929]
[1748658059115,6.44786897,155.09,155.02,40.59924815]
[1748658059116,21.94959929,155.07,155.02,40.59924815]
[1748658059299,21.94959929,155.08,155.03,22.09176086]
[1748658060709,6.44870058,155.07,155.03,22.09176086]
[1748658060891,163.01592399,155.13,155.05,21.94959929]
[1748658061088,21.94959929,155.1,155.05,21.94959929]
[1748658061494,21.94959929,155.09,155.04,21.94959929]
[1748658062114,21.94959929,155.08,155.03,21.94959929]
[1748658062299,21.94959929,155.08,155.01,44.5315]
[1748658062300,21.94959929,155.07,155.02,21.94959929]
[1748658062626,21.94959929,155.07,155.01,44.5315]
[1748658062627,6.4499484,155.04,155.01,12.06]
[1748658062803,28.39954769,155.04,155.01,12.06]
[1748658062991,21.94959929,155.02,154.97,40.59924815]
[1748658063193,6.4499484,155.04,154.96,12.0]
[1748658063194,21.94959929,155.0,154.96,12.0]
[1748658063393,21.94959929,154.99,154.96,12.0]
[1748658063619,21.94959929,155.0,154.95,28.18120704]
[1748658063792,21.94959929,155.0,154.95,6.23160775]
[1748658063997,21.94959929,155.0,154.95,28.18120704]
[1748658065422,28.40136849,155.0,154.95,28.18120704]
[1748658065930,21.94959929,155.0,154.95,34.63480174]
[1748658066234,21.94959929,155.0,154.95,28.18120704]
[1748658066235,28.40128785,155.0,154.95,28.18120704]
[1748658066625,21.94959929,154.99,154.95,6.23160775]
[1748658066926,21.94959929,154.96,154.95,6.23160775]
[1748658067522,28.40270197,154.97,154.95,6.23160775]
[1748658068033,21.94959929,154.96,154.95,6.23160775]
[1748658068604,42.44,155.01,154.95,28.18120704]
[1748658068605,21.94959929,155.01,154.95,28.18120704]
[1748658068911,21.94959929,155.0,154.95,28.18120704]
[1748658069111,21.94959929,154.99,154.95,6.23160775]
[1748658070041,21.94959929,155.0,154.95,34.63473703]
[1748658071220,21.94959929,154.99,154.95,12.68513774]
[1748658071401,21.94959929,154.99,154.95,28.18120704]
[1748658072121,21.94959929,155.0,154.95,34.63487423]
[1748658072933,21.94959929,154.99,154.95,6.23160775]
[1748658074036,21.94959929,155.0,154.95,28.18120704]
[1748658074234,12.0,155.02,154.98,21.94959929]
[1748658074405,168.84959929,155.03,154.98,21.94959929]
[1748658074610,146.9,155.03,154.99,21.94959929]
[1748658074819,28.39961841,155.04,154.99,21.94959929]
[1748658075314,21.94959929,155.04,154.99,21.94959929]
[1748658075518,28.39918463,155.05,155.0,21.94959929]
[1748658075917,21.94959929,155.02,154.97,21.94959929]
[1748658077139,28.40072874,155.02,154.97,21.94959929]
[1748658077644,21.94959929,155.04,154.99,21.94959929]
[1748658077833,21.94959929,155.05,155.0,21.94959929]
[1748658078132,21.94959929,155.05,154.96,40.88357129]
[1748658078133,21.94959929,155.06,155.02,21.94959929]
[1748658078724,21.94959929,155.06,155.01,21.94959929]
[1748658078930,21.94959929,155.04,154.98,12.0]
[1748658079134,28.39996748,155.03,154.98,33.94959929]
[1748658079343,28.39996748,155.03,154.98,12.0]
[1748658079344,21.94959929,155.0,154.98,12.0]
[1748658079511,21.94959929,155.0,154.95,40.88573679]
[1748658079714,21.94959929,155.01,154.96,21.94959929]
[1748658080140,6.45036819,155.03,154.96,21.94959929]
[1748658080347,21.94959929,155.01,154.96,21.94959929]
[1748658081527,28.40085653,155.01,154.96,21.94959929]
[1748658081938,21.94959929,155.01,154.96,28.40280248]
[1748658082138,1.6109,155.04,154.96,28.40280248]
[1748658082139,21.94959929,155.03,154.98,21.94959929]
[1748658082942,21.94959929,155.01,154.97,0.14216157]
[1748658083145,70.52334201,155.06,154.98,21.94959929]
[1748658083146,21.94959929,155.03,154.98,21.94959929]
[1748658083636,21.94959929,155.04,154.99,21.94959929]
[1748658084852,28.39970829,155.04,154.99,21.94959929]
[1748658085717,21.94959929,155.04,154.99,28.40157676]
[1748658085940,21.94959929,155.05,155.0,21.94959929]
[1748658086117,21.94959929,155.04,154.99,28.40157676]
[1748658086729,21.94959929,155.04,154.99,21.94959929]
[1748658086932,12.0,155.06,154.97,22.09176086]
[1748658086933,21.94959929,155.02,154.97,22.09176086]
[1748658087122,21.94959929,155.02,154.96,18.79181043]
[1748658087123,21.94959929,155.01,154.96,28.40279588]
[1748658087339,21.94959929,155.02,154.97,21.94959929]
[1748658088024,28.40042605,155.02,154.97,21.94959929]
[1748658088833,21.94959929,155.0,154.95,12.48270775]
[1748658089031,21.94959929,155.0,154.95,28.18120704]
[1748658089952,21.94959929,155.01,154.96,21.94959929]
[1748658090127,28.40091535,155.01,154.96,21.94959929]
[1748658090324,21.94959929,155.0,154.95,28.18120704]
[1748658090522,21.94959929,155.0,154.95,34.63486365]
[1748658091738,21.94959929,155.01,154.95,12.68526436]
[1748658092045,21.94959929,154.98,154.95,6.23160775]
[1748658092250,146.9,155.01,154.95,6.23160775]
[1748658092455,168.84959929,155.01,154.96,21.94959929]
[1748658092935,21.94959929,155.0,154.95,28.18120704]
[1748658093843,21.94959929,154.98,154.95,6.23160775]
[1748658094550,28.40162845,154.99,154.95,6.23160775]
[1748658095150,21.94959929,154.99,154.95,6.23160775]
[1748658096254,175.3008539,155.01,154.95,28.18120704]
[1748658096554,146.9,155.01,154.96,21.94959929]
[1748658096752,28.40008829,155.03,154.98,21.94959929]
[1748658097653,28.40008829,155.03,154.97,28.40240934]
[1748658099342,28.40008829,155.03,154.98,21.94959929]
[1748658099725,21.94959929,155.02,154.97,22.23392243]
[1748658099933,21.94959929,154.98,154.95,6.23160775]
[1748658100236,43.89919858,154.96,154.87,21.94959929]
[1748658100548,21.94959929,154.92,154.87,21.94959929]
[1748658101454,28.40384971,154.94,154.89,21.94959929]
[1748658101656,21.94959929,154.92,154.87,22.09176086]
[1748658102044,33.00314819,154.92,154.87,33.28747133]
[1748658102243,33.00314819,154.93,154.88,33.00314819]
[1748658103064,39.45784434,154.93,154.88,33.00314819]
[1748658103243,33.00314819,154.92,154.87,33.00314819]
[1748658103648,33.00314819,154.92,154.86,7.8737]
[1748658103980,33.00314819,154.89,154.85,4.0]
[1748658104141,33.00314819,154.88,154.85,4.0]
[1748658104768,33.00314819,154.88,154.86,0.14216157]
[1748658105887,33.00314819,154.87,154.85,4.0]
[1748658107751,33.00314819,154.89,154.86,0.14216157]
[1748658108172,75.34314819,154.91,154.86,33.14530976]
[1748658108477,33.00314819,154.91,154.88,0.14216157]
[1748658108659,33.00314819,154.9,154.88,0.14216157]
[1748658109167,33.00314819,154.91,154.88,0.14216157]
[1748658110358,33.00314819,154.9,154.85,4.0]
[1748658110571,33.00314819,154.91,154.86,51.93712019]
[1748658110750,33.00314819,154.91,154.88,0.14216157]
[1748658111469,158.84,154.94,154.9,0.14216157]
[1748658111470,179.90314819,154.94,154.9,0.14216157]
[1748658111670,33.00314819,154.93,154.9,0.14216157]
[1748658112773,179.90314819,154.94,154.9,0.14216157]
[1748658113444,33.00314819,154.93,154.9,0.14216157]
[1748658113645,153.35413315,154.94,154.85,46.14430165]
[1748658113646,153.35413315,154.94,154.86,18.933972]
[1748658113871,33.00314819,154.92,154.86,18.79181043]
[1748658114170,33.00314819,154.92,154.88,33.14530976]
[1748658114368,33.00314819,154.93,154.88,33.14530976]
[1748658114555,95.68443535,154.98,154.85,10.45775533]
[1748658114556,20.54962173,154.98,154.93,0.14216157]
[1748658114870,33.00314819,154.97,154.93,0.14216157]
[1748658115073,11.94,154.99,154.93,0.14216157]
[1748658115074,33.00314819,155.01,154.96,33.28747133]
[1748658115453,39.45443984,155.01,154.96,33.28747133]
[1748658115651,33.00314819,154.98,154.92,18.933972]
[1748658115848,33.00314819,154.97,154.93,0.14216157]
[1748658116058,33.00314819,154.98,154.93,33.14530976]
[1748658116959,39.45559515,154.98,154.93,33.14530976]
[1748658118151,39.45559515,154.98,154.93,0.14216157]
[1748658118377,6.45244696,154.98,154.93,33.14530976]
[1748658118555,33.00314819,154.97,154.93,33.14530976]
[1748658118751,33.00314819,154.95,154.9,0.14216157]
[1748658118953,33.00314819,154.94,154.89,52.74794819]
[1748658119158,33.00314819,154.94,154.89,51.19304819]
[1748658119371,33.00314819,154.93,154.9,0.14216157]
[1748658119554,33.00314819,154.93,154.89,11.94]
[1748658120070,33.00314819,154.93,154.9,0.14216157]
[1748658120276,39.4578879,154.93,154.89,11.94]
[1748658120824,6.45473971,154.93,154.89,44.94314819]
[1748658121077,33.00314819,154.95,154.9,0.14216157]
[1748658121261,39.45695032,154.95,154.9,33.14530976]
[1748658121663,33.00314819,154.91,154.85,11.8048]
[1748658121858,33.00314819,154.91,154.86,18.64964886]
[1748658122053,33.00314819,154.89,154.85,10.2499]
[1748658122277,26.0,154.93,154.85,4.0]
[1748658122577,39.45956515,154.89,154.85,4.0]
[1748658122759,39.45956515,154.89,154.85,37.00314819]
[1748658123073,39.45956515,154.89,154.85,4.0]
[1748658124456,33.00314819,154.88,154.85,4.0]
[1748658124856,33.00314819,154.87,154.85,4.0]
[1748658126094,39.46032793,154.87,154.85,4.0]
[1748658127852,6.45717974,154.87,154.85,4.0]
[1748658128053,28.47123432,154.88,154.85,4.0]
[1748658128304,6.45673182,154.88,154.85,4.0]
[1748658128782,22.0145025,154.89,154.85,4.0]
[1748658129081,28.4703159,154.9,154.86,0.14216157]
[1748658130083,22.0145025,154.89,154.86,0.14216157]
[1748658131359,28.4703159,154.9,154.86,0.14216157]
[1748658132058,6.45494448,154.92,154.86,0.14216157]
[1748658132461,6.45494448,154.92,154.86,47.40583391]